Cogmind - Beta 10 @@@ ROGUE MODE // 2020.09.17 @ 19:49:25 Player: UlyssesB Result: Destroyed by G-73 Enforcer with Phase Gun Performance ------------- Evolutions (9) 4500 Regions Visited (24) 4800 Robots Destroyed (389) 1945 Value Destroyed (18186) 18186 Prototype IDs (21) 420 Alien Tech Used (0) 0 Bonus (9694) 9694 TOTAL SCORE: 39545 Bonus ------- Pacifist 200 High Alert Combat Kills 4362 Follower Combat Kills 1405 Entered Garrisons 1400 Used RIF Installer 3000 Friendly Fire -673 Cogmind --------- Core Integrity 0/1600 Matter 95/300 Energy 100/100 System Corruption 0% Temperature Cool (9) Movement Core (50) Location -1/Access Parts ------- > --- POWER (2) -------- (None) > --- PROPULSION (8) --- (None) > --- UTILITY (11) ----- Hacking Suite > --- WEAPON (4) ------- (None) > --- INVENTORY (4) ---- Improved Fusion Compressor Advanced Cooling System Enhanced Quantum Rifle Fusion Bomb Launcher Peak State ------------ > --- POWER ------------ Light Quantum Reactor Light Quantum Reactor > --- PROPULSION ------- Armored Heavy Treads Advanced Heavy Treads High-density Centrium Heavy Treads High-density Centrium Heavy Treads > --- UTILITY ---------- Advanced Cooling System Advanced Coolant Injector Large Storage Unit Advanced Targeting Computer Experimental Core Analyzer Advanced Armor Integrity Analyzer Advanced Phase Shifter Heavy Armor Plating > --- WEAPON ----------- Enhanced Quantum Rifle Enhanced Quantum Rifle Enhanced Quantum Rifle Linear Accelerator > --- INVENTORY -------- Particle Reactor Light Particle Reactor High-density Centrium Heavy Treads Phase Gun Phase Gun Quantum Rifle Micro-nuke Launcher Fusion Bomb Launcher Nanosword [Rating: 182] Favorites ----------- Power Micro Fission Core Engine Cooled Ion Engine Power Core Micro Fission Core Reactor Light Quantum Reactor Propulsion Improved Treads Treads Improved Treads Leg Flexi-carbon Leg Wheel Armored Wheel Hover Unit Combat Gravmag System Flight Unit Xenon Bombardment Thruster Utility Large Storage Unit Device Advanced Heat Sink Storage Large Storage Unit Processor Advanced Target Analyzer Hackware Relay Coupler [Sentry] Protection Improved Medium Armor Plating Weapon KE Penetrator Energy Gun Enhanced Quantum Rifle Energy Cannon Heavy Phase Cannon Ballistic Gun KE Penetrator Ballistic Cannon Gauss Cannon Launcher EMP Blaster Special Weapon Improved Remote Datajack Slashing Weapon Chainsword Build | -11 -10 -9 -9 -9 -8 -8 -7 -6 -6 -6 -5 -5 -5 -5 -4 -4 -4 -3 -3 -2 -2 -2 -2 -1 ------- Run | Scr Mat Mat Min Exi Min Mat Fac Fac Gar Fac Fac Gar Fac Gar Fac Gar Fac Res Gar Res Gar Res Gar Acc Slots Evolved 18 | . . 2 . . . 2 2 2 . . 2 . . . 2 . . 2 . 2 . . . 2 Power 1 | . . . . . . . . 1 . . . . . . . . . . . . . . . . Propulsion 6 | . . . . . . 2 1 1 . . . . . . . . . . . 2 . . . . Utility 9 | . . 2 . . . . 1 . . . 2 . . . 2 . . . . . . . . 2 Weapon 2 | . . . . . . . . . . . . . . . . . . 2 . . . . . . Parts Attached 537 | . 4 36 2 2 2 71 56 30 15 23 8 38 3 31 5 37 48 7 38 23 24 9 16 9 Power 36 | . . 4 . . . 3 1 5 1 2 . 2 . 2 . 4 3 . 3 2 3 . 1 . Engine 13 | . . 4 . . . 3 1 2 . 1 . 2 . . . . . . . . . . . . Core 10 | . . . . . . . . 1 . 1 . . . 2 . 2 3 . 1 . . . . . Reactor 13 | . . . . . . . . 2 1 . . . . . . 2 . . 2 2 3 . 1 . Propulsion 126 | . 3 10 . . . 18 13 10 4 3 1 11 . 11 . 7 6 2 10 6 1 . 4 6 Treads 57 | . . 7 . . . 16 4 1 . . . 6 . 8 . . 1 . 2 5 1 . 2 4 Leg 47 | . . . . . . 1 8 7 4 3 1 2 . 3 . 7 2 . 6 1 . . 2 . Wheel 12 | . 3 3 . . . 1 . 1 . . . 3 . . . . . . . . . . . 1 Hover 5 | . . . . . . . . 1 . . . . . . . . 3 1 . . . . . . Flight 5 | . . . . . . . 1 . . . . . . . . . . 1 2 . . . . 1 Utility 142 | . . 11 . 2 . 16 10 5 2 8 4 9 1 7 3 15 14 . 9 9 9 5 1 2 Device 65 | . . 2 . . . 10 4 2 2 7 . 6 . 3 2 5 2 . 5 6 5 2 1 1 Storage 17 | . . 3 . 2 . 2 3 1 . . 1 . 1 . . . 2 . . 2 . . . . Processor 12 | . . . . . . . . 1 . . . . . 1 1 1 2 . 2 1 2 1 . . Hackware 17 | . . . . . . . . . . . . . . . . 7 7 . 2 . . . . 1 Protection 31 | . . 6 . . . 4 3 1 . 1 3 3 . 3 . 2 1 . . . 2 2 . . Artifact . | . . . . . . . . . . . . . . . . . . . . . . . . . Weapon 233 | . 1 11 2 . 2 34 32 10 8 10 3 16 2 11 2 11 25 5 16 6 11 4 10 1 Energy Gun 58 | . . 9 2 . 1 10 6 1 . . . 3 . 4 . . 3 2 5 2 7 1 2 . Energy Cannon 50 | . . . . . . 10 6 7 3 6 2 5 1 . 2 3 3 . . 2 . . . . Ballistic Gun 19 | . 1 . . . . 1 2 . . . . . . 3 . 2 1 2 3 . 3 . 1 . Ballistic Cannon 19 | . . . . . . . 2 1 . 3 1 2 . 1 . . 5 . . . . 2 2 . Launcher 52 | . . 2 . . 1 8 11 1 5 . . 6 . 1 . . 6 . 4 1 1 . 4 1 Special Weapon 17 | . . . . . . . . . . . . . . . . 5 6 1 4 1 . . . . Impact Weapon . | . . . . . . . . . . . . . . . . . . . . . . . . . Slashing Weapon 18 | . . . . . . 5 5 . . 1 . . 1 2 . 1 1 . . . . 1 1 . Piercing Weapon . | . . . . . . . . . . . . . . . . . . . . . . . . . Special Melee Weapon . | . . . . . . . . . . . . . . . . . . . . . . . . . Unidentified Prototypes 14 | . . 3 . . . 2 1 3 . . . . . . . . 1 . . 1 . 2 . 1 Parts Lost 187 | . . 9 . . . 13 21 6 4 4 1 16 . 8 . 9 20 . 32 1 9 2 22 10 Power 17 | . . 2 . . . . 2 . 1 1 . 2 . 1 . . 2 . 3 . . . 3 . Propulsion 74 | . . 1 . . . 7 9 3 2 3 1 6 . 4 . 6 6 . 12 . . . 6 8 Utility 41 | . . 3 . . . . 4 1 . . . 5 . 1 . 1 7 . 6 1 3 2 6 1 Weapon 55 | . . 3 . . . 6 6 2 1 . . 3 . 2 . 2 5 . 11 . 6 . 7 1 Highest Loss Streak 16 | . . 5 . . . 5 9 2 2 4 1 8 . 4 . 3 16 . 8 1 2 1 12 5 Average Slot Usage (%) 87 | . 85 95 100 100 100 97 86 77 98 98 97 93 100 96 100 96 79 79 49 45 77 76 54 20 Engine 4 | . 14 11 11 11 11 8 6 1 . . . 9 11 9 . . . . . . . . . . Core 1 | . . . . . . . . 1 . . 5 . . . 10 8 7 9 1 . . . . . Reactor 2 | . . . . . . . . 6 12 11 5 . . . . 1 1 . 2 5 8 8 5 . Treads 14 | . . 15 22 22 22 33 10 3 . . . 13 17 28 31 4 . . 2 12 16 17 12 7 Leg 9 | . 3 . . . . . 13 16 38 39 34 4 . 4 . 24 6 . 8 . . . . . Wheel 2 | . 25 6 . . . . 3 3 . . . 13 17 . . . . . . . . . . 2 Device 10 | . . 10 . . . 13 8 16 15 19 11 14 17 10 11 5 3 . 4 6 20 13 11 . Storage 13 | . 14 19 22 22 22 18 17 8 13 13 16 12 16 17 15 15 8 9 1 4 4 4 3 . Processor 3 | . . . . . . . . . 4 . . . . . 9 12 8 9 8 7 7 6 4 3 Hackware 1 | . . . . . . . . . . . . . . . . 6 18 19 2 . . . . 1 Protection 5 | . . 10 22 22 22 4 6 2 . . 9 8 5 9 10 4 2 4 . . 1 8 1 . Energy Gun 5 | . 1 16 22 22 22 8 4 . . . . . 7 1 . . 1 1 4 . 9 14 7 . Energy Cannon 3 | . . . . . . 5 1 9 5 5 10 8 . . 10 2 . . . 5 1 . . . Ballistic Gun 2 | . 27 3 . . . . 1 . . . . . . 8 . 2 1 . 2 . 5 . 1 . Launcher 1 | . . 1 . . . 1 2 . 7 5 . . . . . . 2 3 . . . . 1 . Naked Turns . | . . . . . . . . . . . . . . . . . . . . . . . . . Heaviest Build 113 | 10 10 58 58 58 58 59 78 82 75 81 98 99 81 94 88 86 84 63 63 87 98 113 111 2 Greatest Support 325 | 20 20 43 43 43 43 83 47 82 102 102 103 103 36 145 145 145 130 91 100 325 325 310 310 7 Greatest Overweight (x) 13 | . . 5 1 1 1 5 7 13 1 . 1 8 2 4 . 1 4 1 3 . . . . . Average Overweight (x) . | . . 1 1 1 1 . 3 1 . . . 2 2 . . . . . . . . . . . Largest Inventory Capacity 22 | . 6 16 16 16 16 22 22 16 16 16 22 22 20 20 20 20 20 14 14 10 10 10 10 4 Average Capacity 15 | . 6 11 16 16 16 16 18 12 16 16 21 17 19 20 20 20 13 14 5 6 10 10 9 4 Most Carried 22 | . 6 16 16 16 16 16 22 13 16 16 20 22 18 20 19 20 20 14 14 10 10 10 9 4 Average Carried 14 | . 5 10 16 16 16 15 16 10 14 15 17 16 17 19 18 19 12 13 3 4 9 9 6 3 Final Capacity 22 | 6 6 16 16 16 16 16 10 16 16 16 22 16 20 20 20 20 14 14 4 10 10 10 4 4 Final Carried 20 | 6 6 16 16 16 16 15 9 12 16 16 20 16 18 20 19 20 14 14 . 9 10 9 4 4 Class Distribution -------------------- 48% | Scavenger-Mutant 28% | Mutant 6% | Scavenger-Gunner 5% | Hauler-Mutant 4% | Bothacker-Mutant 3% | Scavenger-Tank Dominant Class ---------------- Mutant | -10/Materials Mutant | -9/Materials Mutant | -9/Mines Mutant | -9/Exiles Mutant | -8/Mines Mutant | -8/Materials Scavenger-Mutant | -7/Factory Scavenger-Mutant | -6/Factory Scavenger-Mutant | -6/Garrison Scavenger-Mutant | -6/Factory Hauler-Mutant | -5/Factory Scavenger-Mutant | -5/Garrison Scavenger-Mutant | -5/Factory Scavenger-Mutant | -5/Garrison Scavenger-Mutant | -4/Factory Scavenger-Mutant | -4/Garrison Bothacker-Mutant | -4/Factory Bothacker-Mutant | -3/Research Scavenger-Mutant | -3/Garrison Mutant | -2/Research Scavenger-Gunner | -2/Garrison Scavenger-Tank | -2/Research Scavenger-Mutant | -2/Garrison Mutant | -1/Access Resources | -11 -10 -9 -9 -9 -8 -8 -7 -6 -6 -6 -5 -5 -5 -5 -4 -4 -4 -3 -3 -2 -2 -2 -2 -1 ----------- Run | Scr Mat Mat Min Exi Min Mat Fac Fac Gar Fac Fac Gar Fac Gar Fac Gar Fac Res Gar Res Gar Res Gar Acc Matter Collected 8977 | 200 . 595 28 . 28 989 824 578 266 348 73 563 . 672 . 825 1036 88 692 248 448 213 263 . Remotely 218 | . . . . . . . . . . . . . . . . . . . . 177 41 . . . Salvage Created 15792 | . . 1314 148 . 28 2406 1731 910 777 793 73 990 . 1205 . 629 479 101 509 444 1787 869 521 78 Parts 730 | . . 72 11 . 5 142 97 40 33 35 2 38 . 55 . 22 18 1 20 15 57 37 26 4 Haulers Intercepted 8 | . . 4 . . . 1 1 1 . . . . . . . . . . . 1 . . . . Recyclers Shooed 14 | . . 1 . . . 4 1 3 . 1 . . . . . . 2 . . 2 . . . . Parts Field Recycled . | . . . . . . . . . . . . . . . . . . . . . . . . . Retrieved Matter . | . . . . . . . . . . . . . . . . . . . . . . . . . Parts Self-Destructed . | . . . . . . . . . . . . . . . . . . . . . . . . . Prevented . | . . . . . . . . . . . . . . . . . . . . . . . . . Kills | -11 -10 -9 -9 -9 -8 -8 -7 -6 -6 -6 -5 -5 -5 -5 -4 -4 -4 -3 -3 -2 -2 -2 -2 -1 ------- Run | Scr Mat Mat Min Exi Min Mat Fac Fac Gar Fac Fac Gar Fac Gar Fac Gar Fac Res Gar Res Gar Res Gar Acc Combat Hostiles Destroyed 329 | . . 29 5 . 4 59 39 11 16 13 1 20 . 21 . 9 17 1 14 6 30 10 19 5 Melee 6 | . . . . . . . 2 1 . . . . . 1 . . . . . . . . 2 . Guns 96 | . . 20 5 . 1 19 7 . . . . . . 7 . 4 1 . 3 . 18 7 4 . Cannons 67 | . . . . . . 14 5 7 5 7 1 6 . 1 . 3 3 . . 4 6 2 3 . AOE 143 | . . 9 . . 3 26 25 3 11 5 . 11 . 8 . . 11 . 10 2 4 . 10 5 Classes Destroyed 19 | . . 7 1 . . 6 1 . . 1 . 1 . . . . 2 . . . . . . . Worker 12 | . . . . . . 2 7 . . 1 . . . . . . . . . 1 . 1 . . Builder 14 | . . . . . . 4 7 1 . 1 . . . . . . 1 . . . . . . . Tunneler 3 | . . 1 . . . 1 . 1 . . . . . . . . . . . . . . . . Hauler 8 | . . 4 . . . 1 1 1 . . . . . . . . . . . 1 . . . . Recycler 11 | . . 1 . . . 2 3 2 . 2 . . . . . . . . . . . 1 . . Mechanic 4 | . . . . . . 2 2 . . . . . . . . . . . . . . . . . Operator 3 | . . . . . . 2 1 . . . . . . . . . . . . . . . . . Watcher 3 | . . 1 . . . . 1 . . . . . . 1 . . . . . . . . . . Swarmer 105 | . . 11 3 . 4 17 2 3 9 . . 8 . 5 . 3 3 . 8 . 12 . 12 5 Saboteur 1 | . . . . . . . . . . 1 . . . . . . . . . . . . . . Grunt 127 | . . 13 1 . . 29 24 6 7 5 . 9 . 2 . 5 2 . 3 4 10 5 2 . Brawler 12 | . . . 1 . . 2 3 . . . . . . 1 . . 2 . 1 . 1 . 1 . Duelist 6 | . . . . . . 1 . . . 2 . . . . . . . . . . 2 . 1 . Protector 2 | . . . . . . . . . . . . . . . . . 1 . . . . 1 . . Sentry 40 | . . 5 . . . 9 5 . . 3 1 1 . 9 . . . 1 1 1 3 1 . . Demolisher 2 | . . . . . . . . . . . . . . . . . 2 . . . . . . . Hunter 17 | . . . . . . 1 1 1 . . . . . 3 . 2 5 . . . 2 . 2 . Programmer 15 | . . . . . . . 4 1 . 2 . 1 . . . 1 2 . . 1 . 3 . . Behemoth 4 | . . . . . . . . . . . . 1 . 1 . . . . 1 . . . 1 . Best Kill Streak 12 | . . 6 3 . 4 12 10 5 6 9 1 7 . 11 . 4 8 1 7 6 7 5 7 5 Combat Bots Only 11 | . . 5 3 . 4 9 4 4 6 5 1 7 . 11 . 4 8 1 7 5 8 4 7 5 Max Kills in Single Turn 6 | . . 2 1 . 3 6 5 3 3 6 1 3 . 3 . 1 4 1 4 3 3 1 4 3 Gunslinging . | . . . . . . . . . . . . . . . . . . . . . . . . . Exploded 4 | . . 2 . . 3 4 3 3 3 4 . 3 . 3 . . 4 . 4 2 3 . 4 3 Melee 1 | . . . . . . . 1 1 . . . . . 1 . . . . . . . . 1 . Uniques/NPCs Destroyed . | . . . . . . . . . . . . . . . . . . . . . . . . . Combat | -11 -10 -9 -9 -9 -8 -8 -7 -6 -6 -6 -5 -5 -5 -5 -4 -4 -4 -3 -3 -2 -2 -2 -2 -1 -------- Run | Scr Mat Mat Min Exi Min Mat Fac Fac Gar Fac Fac Gar Fac Gar Fac Gar Fac Res Gar Res Gar Res Gar Acc Damage Taken 40401 | . 61 1659 55 . 69 2936 3097 1169 892 1053 290 2701 . 2061 153 1676 3300 89 4902 702 2883 1017 4753 4883 Core 5862 | . 12 197 . . 23 338 484 102 93 73 39 206 . 111 . 141 745 . 1210 52 118 19 280 1619 Absorbed by Shields 1438 | . . . . . . . . . 78 . . 42 . 332 . 500 44 . 307 . . . 135 . Reduced by Siege Mode 633 | . . . . . . . . . . . . . . . . . . . . 47 277 96 213 . Core Remaining (%) 53 | 100 95 . . . 45 38 30 . . 68 . . . 64 . . 22 . 6 . . . 67 . Volleys Fired 855 | . 2 95 7 . 2 116 69 33 27 34 7 54 3 55 . 81 75 7 52 19 66 26 23 2 Largest 4 | . 2 2 2 . 2 2 2 2 2 2 2 2 2 2 . 2 2 2 4 3 4 4 4 1 Hottest 376 | . 40 112 112 . 112 133 145 205 205 200 196 196 130 130 . 196 181 153 224 235 362 376 342 52 Shots Fired 1607 | . 4 174 14 . 3 200 118 60 51 60 13 82 4 106 . 108 88 11 97 39 216 97 60 2 Gun 848 | . 4 169 14 . 2 117 56 . . . . . 2 103 . 12 18 8 77 . 148 84 34 . Cannon 523 | . . . . . . 63 40 57 30 46 13 62 2 1 . 50 27 . . 38 67 13 14 . Launcher 149 | . . 5 . . 1 20 22 3 21 14 . 20 . 2 . . 17 . 8 1 1 . 12 2 Special 87 | . . . . . . . . . . . . . . . . 46 26 3 12 . . . . . Kinetic 365 | . 4 80 . . . 10 37 1 . 24 1 6 . 69 . 12 19 . 36 . 35 13 18 . Thermal 790 | . . 59 8 . 2 125 40 56 30 22 12 48 2 . . 50 20 4 34 19 145 84 30 . Explosive 91 | . . 5 . . 1 20 22 3 2 . . 1 . 2 . . 11 . 8 1 1 . 12 2 Electromagnetic 274 | . . 30 6 . . 45 19 . 19 14 . 27 2 35 . . 12 4 7 19 35 . . . Robot Hit Streak 45 | . 1 20 9 . 10 21 11 12 13 15 9 11 . 17 . 11 10 8 13 34 45 41 35 26 Robot Miss Streak 9 | . 3 4 3 . . 2 5 4 9 4 . 5 . 3 . 3 3 1 2 1 2 1 2 . Penetration Max 1 | . . . . . . . . . . . . . . . . 1 . . . . 1 . . . Secondary Targets 6 | . . . 1 . . 1 . . . . . . . . . . 1 . 1 . 2 . . . Max Gunslinging Chain 1 | . . . 1 . . 1 . . . . . . . . . . 1 . 1 . 1 . . . Shots Hit Robots 1181 | . 1 128 9 . 1 161 89 46 27 50 9 41 . 84 . 83 50 9 72 34 153 85 47 2 Core Hits 879 | . 1 63 6 . 4 120 173 33 34 49 2 37 . 56 . 22 48 3 50 23 74 34 41 6 Critical Hits 30 | . . 1 . . . 8 3 1 . . . . . 4 . 5 1 2 2 1 2 . . . Critical Kills 10 | . . . . . . 3 1 . . . . . . 2 . 2 . . 1 . 1 . . . Critical Parts Destroyed 16 | . . 1 . . . 5 1 1 . . . . . 1 . 2 1 1 1 1 1 . . . Melee Attacks 88 | . . . . . . 23 20 6 . 1 . . 3 3 . 8 2 . . . . . 6 16 Impact . | . . . . . . . . . . . . . . . . . . . . . . . . . Slashing 88 | . . . . . . 23 20 6 . 1 . . 3 3 . 8 2 . . . . . 6 16 Piercing . | . . . . . . . . . . . . . . . . . . . . . . . . . Sneak Attacks 9 | . . . . . . 1 2 1 . . . . . 1 . 4 . . . . . . . . Combat Hostiles . | . . . . . . . . . . . . . . . . . . . . . . . . . Follow-up Attacks . | . . . . . . . . . . . . . . . . . . . . . . . . . Damage Inflicted 49740 | . 14 2180 180 . 199 6305 6752 1896 1878 2321 309 2509 . 2646 . 1935 3390 188 3119 1553 4864 2796 3884 822 Guns 14422 | . 14 1614 169 . 17 1709 956 . . . . . . 1756 . 227 169 172 1635 . 3003 2407 574 . Cannons 11135 | . . . . . . 1082 618 1151 674 1132 309 1158 . 26 . 1271 619 . . 1097 1395 379 224 . Explosions 22367 | . . 556 . . 182 3347 4734 460 1204 1189 . 1334 . 744 . . 2602 . 1468 456 466 . 2818 807 Melee 1624 | . . . . . . 152 431 285 . . . . . 109 . 417 . . . . . . 230 . Ramming 192 | . . 10 11 . . 15 13 . . . . 17 . 11 . 20 . 16 16 . . 10 38 15 Kinetic 5785 | . 14 573 . . . 105 800 . . 360 . 144 . 1160 . 227 421 . 694 . 637 379 271 . Thermal 18115 | . . 786 122 . 17 2146 630 1199 946 1614 309 1069 . 194 . 1271 266 84 835 643 3050 2407 527 . Explosive 18019 | . . 412 . . 182 3158 4388 412 274 . . 232 . 550 . . 2466 . 1468 456 396 . 2818 807 Electromagnetic 6005 | . . 399 47 . . 729 490 . 658 347 . 1047 . 622 . . 237 88 106 454 781 . . . Impact . | . . . . . . . . . . . . . . . . . . . . . . . . . Slashing 1624 | . . . . . . 152 431 285 . . . . . 109 . 417 . . . . . . 230 . Piercing . | . . . . . . . . . . . . . . . . . . . . . . . . . Highest Corruption 16 | . . . . . . 1 4 2 2 5 . 3 3 3 . 3 16 . 11 . . 6 6 . Average Corruption 3 | . . . . . . 1 2 2 2 2 . 2 3 2 . 2 11 . 7 . . 4 6 . Corruption Purged 3 | . . . . . . . . . . . . . . 3 . . . . . . . . . . Effects 240 | . . . . . . . 30 10 12 13 . 20 2 17 . 34 63 . 13 . . 14 12 . Message Errors 43 | . . . . . . . 9 2 5 4 . 5 . 1 . 8 6 . 1 . . 1 1 . Matter Fused 48 | . . . . . . . 7 . . 1 . 2 . 4 . 9 17 . 3 . . 3 2 . Heat Flow Errors 28 | . . . . . . . 4 3 2 1 . 3 . 1 . 9 3 . . . . 1 1 . Energy Discharges 29 | . . . . . . . 2 1 . 4 . 6 1 4 . 2 4 . 1 . . 2 2 . Parts Rejected 1 | . . . . . . . . . . . . . . . . . . . 1 . . . . . Data Loss (minor) 29 | . . . . . . . 1 3 3 2 . 1 . 4 . 6 4 . 2 . . 2 1 . Data Loss (major) 2 | . . . . . . . . . . . . . . . . . 1 . . . . . 1 . Alerts 2 | . . . . . . . . . . . . . . . . . 1 . 1 . . . . . Misdirections 15 | . . . . . . . . . . . . . . . . . 15 . . . . . . . Targeting Errors 37 | . . . . . . . 5 . 2 1 . 3 1 2 . . 11 . 4 . . 5 3 . Weapon Failures 6 | . . . . . . . 2 1 . . . . . 1 . . 1 . . . . . 1 . Overload Shots 8 | . . . . . . . . 5 3 . . . . . . . . . . . . . . . Overflow Damage 1490 | . . 64 . . . 174 210 163 25 125 5 23 . 74 . 143 135 . 53 66 33 . 94 103 Projectiles 203 | . . . . . . 11 22 4 1 8 5 21 . . . 19 16 . . 63 33 . . . Explosions 939 | . . 64 . . . 163 110 87 24 117 . 2 . . . . 119 . 53 3 . . 94 103 Melee 348 | . . . . . . . 78 72 . . . . . 74 . 124 . . . . . . . . Knockbacks 22 | . . . . . . . . . . 7 . 4 . . . . 7 . . . . 3 1 . Impact . | . . . . . . . . . . . . . . . . . . . . . . . . . Kinetic 21 | . . . . . . . . . . 6 . 4 . . . . 7 . . . . 3 1 . Secondary 1 | . . . . . . . . . . 1 . . . . . . . . . . . . . . Self-Inflicted Damage 1987 | . . 128 . . 28 293 219 340 77 155 . 225 . 56 . . 141 8 174 25 98 . 14 6 Shots 68 | . . 4 . . 1 8 9 8 4 2 . 11 . 3 . . 7 . 6 1 2 . 2 . Rammed 32 | . . 2 2 . . 3 2 . . . . 5 . 1 . 1 . 1 5 . . . 6 4 Targets Rammed 37 | . . 3 2 . . 3 2 . . . . 5 . 2 . 2 . 1 6 . . 1 6 4 Kicked 2 | . . . . . . . . . . . . . . . . 1 . . 1 . . . . . Crushed 3 | . . 1 . . . . . . . . . . . 1 . . . . . . . 1 . . Highest Temperature 593 | . . 240 180 . 60 327 289 194 195 37 11 196 . 150 . 252 238 378 593 394 215 198 198 . Average Temperature 96 | . . 66 71 . 34 77 67 75 83 37 6 71 . 22 . 109 58 225 224 161 94 117 110 . Received Heat Transfer 7277 | . 33 570 . . . 1116 1053 252 192 234 27 737 . 352 36 236 54 18 911 99 270 108 502 477 Effects 20 | . . . . . . 1 . . . . . . . . . . . . 14 5 . . . . Shutdowns 6 | . . . . . . . . . . . . . . . . . . . 4 2 . . . . Energy Bleed 4 | . . . . . . 1 . . . . . . . . . . . . 2 1 . . . . Interference 1 | . . . . . . . . . . . . . . . . . . . 1 . . . . . Matter Decay 2 | . . . . . . . . . . . . . . . . . . . 2 . . . . . Short Circuit 2 | . . . . . . . . . . . . . . . . . . . 1 1 . . . . Damage (minor) 2 | . . . . . . . . . . . . . . . . . . . 1 1 . . . . Damage (major) 3 | . . . . . . . . . . . . . . . . . . . 3 . . . . . Siege Activations 24 | . . . . . . . . . . . . . . . . . . . . 2 14 5 3 . Total Turns 426 | . . . . . . . . . . . . . . . . . . . . 28 287 82 29 . Longest Duration 87 | . . . . . . . . . . . . . . . . . . . . 18 87 24 23 . Robots Corrupted 14 | . . . . . . . . . 2 1 . 3 . 4 . . 1 1 . . 2 . . . Combat Hostiles 12 | . . . . . . . . . . 1 . 3 . 4 . . 1 1 . . 2 . . . Parts Fried 18 | . . 1 . . . 1 . . 2 . . 4 . 5 . . 1 1 . 2 1 . . . Impact Corruptions . | . . . . . . . . . . . . . . . . . . . . . . . . . Robots Melted 4 | . . . . . . . . . . . . . . . . 2 . . 1 . . 1 . . Combat Hostiles 4 | . . . . . . . . . . . . . . . . 2 . . 1 . . 1 . . Parts Melted 55 | . . 5 . . . 9 2 9 . 5 1 1 . . . 5 . . . . 4 13 1 . Heat Transferred 24136 | . . 1729 259 . 37 4148 1307 1600 1255 1475 333 1018 . 100 . 1800 362 111 1110 592 3811 2386 703 . Parts Sabotaged . | . . . . . . . . . . . . . . . . . . . . . . . . . Parts Stolen . | . . . . . . . . . . . . . . . . . . . . . . . . . Parts Stripped . | . . . . . . . . . . . . . . . . . . . . . . . . . Power Chain Reactions 20 | . . 3 . . . 5 2 . 3 1 . 4 . 1 . . . . . . 1 . . . Missiles Intercepted . | . . . . . . . . . . . . . . . . . . . . . . . . . Alert | -11 -10 -9 -9 -9 -8 -8 -7 -6 -6 -6 -5 -5 -5 -5 -4 -4 -4 -3 -3 -2 -2 -2 -2 -1 ------- Run | Scr Mat Mat Min Exi Min Mat Fac Fac Gar Fac Fac Gar Fac Gar Fac Gar Fac Res Gar Res Gar Res Gar Acc Peak Influence 1197 | . 65 529 288 . 98 1157 1196 869 1000 738 454 722 382 909 506 946 660 406 566 351 1197 900 1014 732 Initial 672 | . . 27 168 . . 37 526 585 503 525 361 317 378 267 476 354 496 346 304 281 251 672 566 589 Average 588 | . 28 302 208 . 97 487 551 691 786 626 385 554 379 741 482 742 468 364 465 312 892 729 768 618 Maximum Alert Level 4 | . . 2 1 . . 4 4 3 3 3 2 3 1 3 2 3 2 2 2 1 4 3 3 3 Low Security (%) 5 | . 100 13 61 . 100 13 . . . . . . . . . . . . . 5 . . . . Level 1 21 | . . 66 38 . . 31 29 . . . 78 25 100 1 . 2 31 90 25 94 9 . . . Level 2 39 | . . 19 . . . 32 50 50 44 65 21 53 . 45 100 21 68 9 74 . 12 46 39 88 Level 3 29 | . . . . . . 18 12 49 55 34 . 20 . 52 . 75 . . . . 44 53 60 11 Level 4 4 | . . . . . . 4 6 . . . . . . . . . . . . . 33 . . . Level 5 . | . . . . . . . . . . . . . . . . . . . . . . . . . High Security . | . . . . . . . . . . . . . . . . . . . . . . . . . Max Security . | . . . . . . . . . . . . . . . . . . . . . . . . . Squads Dispatched 51 | . 2 5 . . . 8 11 5 . 6 2 . . . . . 5 . . 3 . 3 . 1 Investigation 9 | . . 3 . . . 1 . . . 2 . . . . . . 1 . . 1 . 1 . . Extermination 10 | . . . . . . . 4 1 . 2 . . . . . . 1 . . 1 . 1 . . Reinforcement 19 | . 2 2 . . . 5 4 1 . 1 . . . . . . 2 . . 1 . . . 1 Assault 8 | . . . . . . 2 2 . . 1 1 . . . . . 1 . . . . 1 . . Garrison 5 | . . . . . . . 1 3 . . 1 . . . . . . . . . . . . . Intercept . | . . . . . . . . . . . . . . . . . . . . . . . . . Construction Impeded 5 | . . 1 . . . . 2 . . 1 . . . . . . 1 . . . . . . . Haulers Reinforced 2 | . . . . . . . . 1 . . . . . . . . . . . 1 . . . . Alert ID Control Effect 1 | . . . . . . . . . . . . . . . . . . . 1 . . . . . Stealth | -11 -10 -9 -9 -9 -8 -8 -7 -6 -6 -6 -5 -5 -5 -5 -4 -4 -4 -3 -3 -2 -2 -2 -2 -1 --------- Run | Scr Mat Mat Min Exi Min Mat Fac Fac Gar Fac Fac Gar Fac Gar Fac Gar Fac Res Gar Res Gar Res Gar Acc Distress Signals 19 | . . 1 . . . 4 3 . . 2 . . . 2 . 2 2 . . 1 . 1 . 1 Communications Jammed . | . . . . . . . . . . . . . . . . . . . . . . . . . Distress Signals . | . . . . . . . . . . . . . . . . . . . . . . . . . Times Spotted 613 | . 11 49 6 . 4 108 64 14 22 19 1 24 . 22 2 35 46 2 45 9 40 15 30 45 Peak Tracking Total 26 | . 7 10 3 . 4 9 7 3 7 5 1 8 . 10 2 13 8 1 9 6 10 6 8 26 Tactical Retreats 52 | . 2 3 1 . . 10 1 1 1 2 . 1 . . . . 6 . 7 1 5 . 4 7 Traps | -11 -10 -9 -9 -9 -8 -8 -7 -6 -6 -6 -5 -5 -5 -5 -4 -4 -4 -3 -3 -2 -2 -2 -2 -1 ------- Run | Scr Mat Mat Min Exi Min Mat Fac Fac Gar Fac Fac Gar Fac Gar Fac Gar Fac Res Gar Res Gar Res Gar Acc Traps Triggered 39 | . . 1 . . . 4 4 1 4 2 1 12 . 1 . 3 2 . 3 . . . 1 . Indirectly 3 | . . . . . . . . . . 2 . . . . . . 1 . . . . . . . Trap Hack Attempts . | . . . . . . . . . . . . . . . . . . . . . . . . . Triggered . | . . . . . . . . . . . . . . . . . . . . . . . . . Disarmed 4 | . . 4 . . . . . . . . . . . . . . . . . . . . . . Reprogrammed . | . . . . . . . . . . . . . . . . . . . . . . . . . Reused . | . . . . . . . . . . . . . . . . . . . . . . . . . Traps Extracted . | . . . . . . . . . . . . . . . . . . . . . . . . . Installed . | . . . . . . . . . . . . . . . . . . . . . . . . . Triggered 2 | . . . . . . . . . . . . . . . . . 1 . 1 . . . . . Machines | -11 -10 -9 -9 -9 -8 -8 -7 -6 -6 -6 -5 -5 -5 -5 -4 -4 -4 -3 -3 -2 -2 -2 -2 -1 ---------- Run | Scr Mat Mat Min Exi Min Mat Fac Fac Gar Fac Fac Gar Fac Gar Fac Gar Fac Res Gar Res Gar Res Gar Acc Machines Disabled 48 | . . 1 . . . 6 7 5 1 7 . 3 . 2 . 5 3 . . . 5 1 2 . Max in Single Turn 6 | . . 1 . . . 2 4 5 1 6 . 1 . 2 . 1 1 . . . 1 1 1 . Garrison Relay 9 | . . . . . . . . . 1 . . 1 . . . 5 . . 1 . 1 . . . Phase Generator 1 | . . . . . . . . . . . . . . 1 . . . . . . . . . . Machines Sabotaged . | . . . . . . . . . . . . . . . . . . . . . . . . . Garrisons Compromised . | . . . . . . . . . . . . . . . . . . . . . . . . . Overloaded Fab Kills . | . . . . . . . . . . . . . . . . . . . . . . . . . Fab Network Shutdowns . | . . . . . . . . . . . . . . . . . . . . . . . . . Hacking | -11 -10 -9 -9 -9 -8 -8 -7 -6 -6 -6 -5 -5 -5 -5 -4 -4 -4 -3 -3 -2 -2 -2 -2 -1 --------- Run | Scr Mat Mat Min Exi Min Mat Fac Fac Gar Fac Fac Gar Fac Gar Fac Gar Fac Res Gar Res Gar Res Gar Acc Machines Accessed 35 | . 1 7 . . . 5 2 3 . 3 3 . 1 . 1 . 3 1 . 3 . 2 . . Terminals 26 | . 1 6 . . . 5 2 2 . 2 2 . . . . . 3 . . 2 . 1 . . Fabricators 1 | . . . . . . . . . . 1 . . . . . . . . . . . . . . Repair Stations . | . . . . . . . . . . . . . . . . . . . . . . . . . Recycling Units 1 | . . 1 . . . . . . . . . . . . . . . . . . . . . . Scanalyzers . | . . . . . . . . . . . . . . . . . . . . . . . . . Garrison Access 7 | . . . . . . . . 1 . . 1 . 1 . 1 . . 1 . 1 . 1 . . Total Hacks 81 | . 2 17 . . . 14 5 6 . 7 5 . 2 . 1 . 9 2 . 6 . 5 . . Successful 44 | . 2 13 . . . 8 2 4 . 3 3 . 1 . 1 . 2 1 . 3 . 1 . . Failed 37 | . . 4 . . . 6 3 2 . 4 2 . 1 . . . 7 1 . 3 . 4 . . Catastrophic 9 | . . . . . . 1 1 . . 1 1 . . . . . 2 . . 1 . 2 . . Database Lockouts . | . . . . . . . . . . . . . . . . . . . . . . . . . Manual 30 | . . 12 . . . 8 2 . . 1 1 . 1 . . . . 1 . 2 . 2 . . Terminals 63 | . 2 16 . . . 14 5 5 . 4 3 . . . . . 9 . . 3 . 2 . . Fabricators 3 | . . . . . . . . . . 3 . . . . . . . . . . . . . . Repair Stations . | . . . . . . . . . . . . . . . . . . . . . . . . . Recycling Units 1 | . . 1 . . . . . . . . . . . . . . . . . . . . . . Scanalyzers . | . . . . . . . . . . . . . . . . . . . . . . . . . Garrison Access 14 | . . . . . . . . 1 . . 2 . 2 . 1 . . 2 . 3 . 3 . . Terminal Hacks 29 | . 2 7 . . . 8 2 3 . 2 1 . . . . . 2 . . 2 . . . . Robot Analysis 1 | . . . . . . . . 1 . . . . . . . . . . . . . . . . Prototype ID Bank 3 | . 1 1 . . . 1 . . . . . . . . . . . . . . . . . . Emergency Access Points 4 | . 1 . . . . . . 1 . 1 . . . . . . . . . 1 . . . . Terminal Index 2 | . . 1 . . . 1 . . . . . . . . . . . . . . . . . . Alert Level 1 | . . . . . . . . . . . . . . . . . 1 . . . . . . . Unreport Threat 1 | . . . . . . 1 . . . . . . . . . . . . . . . . . . Locate Traps 5 | . . . . . . 2 1 . . . 1 . . . . . . . . 1 . . . . Disarm Traps 1 | . . 1 . . . . . . . . . . . . . . . . . . . . . . Transport Status 1 | . . 1 . . . . . . . . . . . . . . . . . . . . . . Recall Investigation 1 | . . 1 . . . . . . . . . . . . . . . . . . . . . . Hauler Manifests 1 | . . 1 . . . . . . . . . . . . . . . . . . . . . . Zone Layout 8 | . . 1 . . . 3 1 1 . 1 . . . . . . 1 . . . . . . . Fabricator Hacks . | . . . . . . . . . . . . . . . . . . . . . . . . . Repair Station Hacks . | . . . . . . . . . . . . . . . . . . . . . . . . . Recycling Unit Hacks . | . . . . . . . . . . . . . . . . . . . . . . . . . Scanalyzer . | . . . . . . . . . . . . . . . . . . . . . . . . . Garrison Access Hacks 7 | . . . . . . . . 1 . . 1 . 1 . 1 . . 1 . 1 . 1 . . Unlock Access 7 | . . . . . . . . 1 . . 1 . 1 . 1 . . 1 . 1 . 1 . . Unauthorized Hacks 8 | . . 6 . . . . . . . 1 1 . . . . . . . . . . . . . Terminals 6 | . . 5 . . . . . . . 1 . . . . . . . . . . . . . . Track 3 | . . 2 . . . . . . . 1 . . . . . . . . . . . . . . Botnet 2 | . . 2 . . . . . . . . . . . . . . . . . . . . . . Operators 1 | . . 1 . . . . . . . . . . . . . . . . . . . . . . Fabricators . | . . . . . . . . . . . . . . . . . . . . . . . . . Repair Stations . | . . . . . . . . . . . . . . . . . . . . . . . . . Recycling Units 1 | . . 1 . . . . . . . . . . . . . . . . . . . . . . Tunnel 1 | . . 1 . . . . . . . . . . . . . . . . . . . . . . Scanalyzers . | . . . . . . . . . . . . . . . . . . . . . . . . . Garrison Access 1 | . . . . . . . . . . . 1 . . . . . . . . . . . . . Reprogram 1 | . . . . . . . . . . . 1 . . . . . . . . . . . . . Data Cores Recovered 1 | . . . . . . 1 . . . . . . . . . . . . . . . . . . Used . | . . . . . . . . . . . . . . . . . . . . . . . . . Hacking Detections 31 | . . 6 . . . 5 2 2 . 3 3 . 1 . . . 3 1 . 3 . 2 . . Full Trace Events 6 | . . 1 . . . 2 . . . . . . . . . . 1 . . 1 . 1 . . Feedback Events . | . . . . . . . . . . . . . . . . . . . . . . . . . Feedback Blocked . | . . . . . . . . . . . . . . . . . . . . . . . . . Robot Schematics Acquired . | . . . . . . . . . . . . . . . . . . . . . . . . . Robots Built . | . . . . . . . . . . . . . . . . . . . . . . . . . Matter . | . . . . . . . . . . . . . . . . . . . . . . . . . Time . | . . . . . . . . . . . . . . . . . . . . . . . . . Total Robot Build Rating . | . . . . . . . . . . . . . . . . . . . . . . . . . Part Schematics Acquired . | . . . . . . . . . . . . . . . . . . . . . . . . . Parts Built . | . . . . . . . . . . . . . . . . . . . . . . . . . Matter . | . . . . . . . . . . . . . . . . . . . . . . . . . Time . | . . . . . . . . . . . . . . . . . . . . . . . . . Total Part Build Rating . | . . . . . . . . . . . . . . . . . . . . . . . . . Parts Repaired . | . . . . . . . . . . . . . . . . . . . . . . . . . Time . | . . . . . . . . . . . . . . . . . . . . . . . . . Parts Recycled . | . . . . . . . . . . . . . . . . . . . . . . . . . Recycled Matter . | . . . . . . . . . . . . . . . . . . . . . . . . . Retrieved Matter . | . . . . . . . . . . . . . . . . . . . . . . . . . Retrieved Components . | . . . . . . . . . . . . . . . . . . . . . . . . . Parts Scanalyzed . | . . . . . . . . . . . . . . . . . . . . . . . . . Part Schematics Acquired . | . . . . . . . . . . . . . . . . . . . . . . . . . Parts Damaged . | . . . . . . . . . . . . . . . . . . . . . . . . . Bothacking | -11 -10 -9 -9 -9 -8 -8 -7 -6 -6 -6 -5 -5 -5 -5 -4 -4 -4 -3 -3 -2 -2 -2 -2 -1 ------------ Run | Scr Mat Mat Min Exi Min Mat Fac Fac Gar Fac Fac Gar Fac Gar Fac Gar Fac Res Gar Res Gar Res Gar Acc Used RIF Installer 6 | . . . . . . . . . 1 . . 1 . 1 . 1 . . 1 . 1 . . . Coupler Efficiency 1 | . . . . . . . . . . . . 1 . . . . . . . . . . . . Command Fork 1 | . . . . . . . . . . . . . . . . 1 . . . . . . . . Alert ID Control 1 | . . . . . . . . . . . . . . . . . . . 1 . . . . . Program Shield 1 | . . . . . . . . . . . . . . 1 . . . . . . . . . . Autoassimilate 1 | . . . . . . . . . . . . . . . . . . . . . 1 . . . Robots Hacked 40 | . . . . . . . . . . . . . . . . 19 12 2 7 . . . . . Non-combat 2 | . . . . . . . . . . . . . . . . . 2 . . . . . . . Combat 38 | . . . . . . . . . . . . . . . . 19 10 2 7 . . . . . Robot Hacks Applied 51 | . . . . . . . . . . . . . . . . 21 15 3 12 . . . . . parse_system 6 | . . . . . . . . . . . . . . . . 3 2 . 1 . . . . . drop_inventory 1 | . . . . . . . . . . . . . . . . . 1 . . . . . . . map_route 1 | . . . . . . . . . . . . . . . . . 1 . . . . . . . find_shortcuts 1 | . . . . . . . . . . . . . . . . 1 . . . . . . . . scatter_targeting 4 | . . . . . . . . . . . . . . . . 1 . . 3 . . . . . disrupt_area 1 | . . . . . . . . . . . . . . . . 1 . . . . . . . . overload_power 1 | . . . . . . . . . . . . . . . . . . . 1 . . . . . wipe_record 7 | . . . . . . . . . . . . . . . . . 1 3 3 . . . . . disable_weapons 1 | . . . . . . . . . . . . . . . . . 1 . . . . . . . reboot_system 1 | . . . . . . . . . . . . . . . . 1 . . . . . . . . overwrite_iff 8 | . . . . . . . . . . . . . . . . 3 2 . 3 . . . . . streamctrl_high 4 | . . . . . . . . . . . . . . . . 2 1 . 1 . . . . . formatsys_high 15 | . . . . . . . . . . . . . . . . 9 6 . . . . . . . Relay Couplers Released 39 | . . . . . . . . . 3 . . 3 . . . 24 . . 4 2 3 . . . Machine Destruction 37 | . . . . . . . . . 3 . . 3 . . . 24 . . 4 . 3 . . . Programmers 2 | . . . . . . . . . . . . . . . . . . . . 2 . . . . Attached 16 | . . . . . . . . . . . . . . . . 7 7 . 2 . . . . . Robots Rewired 15 | . . . . . . . . . . . . . . . . 6 . . . . 9 . . . Allies Hacked . | . . . . . . . . . . . . . . . . . . . . . . . . . Hacks Repelled . | . . . . . . . . . . . . . . . . . . . . . . . . . Allies | -11 -10 -9 -9 -9 -8 -8 -7 -6 -6 -6 -5 -5 -5 -5 -4 -4 -4 -3 -3 -2 -2 -2 -2 -1 -------- Run | Scr Mat Mat Min Exi Min Mat Fac Fac Gar Fac Fac Gar Fac Gar Fac Gar Fac Res Gar Res Gar Res Gar Acc Total Allies 44 | . . . . . . . . . . . 1 . . . . 21 9 . 4 . 9 . . . Largest Group 10 | . . . . . . . . . . . . 1 . . . 10 6 . 2 . 6 . . . Highest-Rated Group 440 | . . . . . . . . . . . . 49 . . . 440 267 . 94 . 381 . . . Highest-Rated Ally 115 | . . . . . . . . . . . . 49 . . . 49 115 . 47 . 69 . . . Total Orders 6 | . . . . . . . . . . 4 . . . . . 1 1 . . . . . . . STAY 1 | . . . . . . . . . . . . . . . . 1 . . . . . . . . ROAM 1 | . . . . . . . . . . . . . . . . . 1 . . . . . . . EXPLORE 3 | . . . . . . . . . . 3 . . . . . . . . . . . . . . RETURN 1 | . . . . . . . . . . 1 . . . . . . . . . . . . . . Ally Attacks 197 | . . . . . . . . . . . . 2 . . . 62 64 . 13 . 56 . . . Total Damage 6702 | . . . . . . . . . . . . 46 . . . 2280 2098 . 428 . 1850 . . . Kills 41 | . . . . . . . . . . . . . . . . 15 15 . 2 . 9 . . . Allies Corrupted 1 | . . . . . . . . . . . . . . . . 1 . . . . . . . . Allies Melted . | . . . . . . . . . . . . . . . . . . . . . . . . . Intel | -11 -10 -9 -9 -9 -8 -8 -7 -6 -6 -6 -5 -5 -5 -5 -4 -4 -4 -3 -3 -2 -2 -2 -2 -1 ------- Run | Scr Mat Mat Min Exi Min Mat Fac Fac Gar Fac Fac Gar Fac Gar Fac Gar Fac Res Gar Res Gar Res Gar Acc Robot Analysis Total 1 | . . . . . . . . 1 . . . . . . . . . . . . . . . . Derelict Logs Recovered 1 | . . . 1 . . . . . . . . . . . . . . . . . . . . . Drone Launches 6 | . . . . . . . . . . 6 . . . . . . . . . . . . . . Drone Recoveries 4 | . . . . . . . . . . 4 . . . . . . . . . . . . . . Exploration | -11 -10 -9 -9 -9 -8 -8 -7 -6 -6 -6 -5 -5 -5 -5 -4 -4 -4 -3 -3 -2 -2 -2 -2 -1 ------------- Run | Scr Mat Mat Min Exi Min Mat Fac Fac Gar Fac Fac Gar Fac Gar Fac Gar Fac Res Gar Res Gar Res Gar Acc Turns Passed 22432 | . 144 1252 358 396 257 2985 2322 887 786 1188 372 1422 77 2304 150 2178 1084 159 746 508 1772 550 244 291 Spaces Moved 13361 | 1 155 664 180 219 139 1483 1283 472 543 592 263 813 50 1177 89 1508 1026 225 528 424 734 246 95 452 Core 920 | . . . . . . . 4 2 . . . . . . . . 37 . 142 249 . . 36 450 Treads 4929 | . . 285 180 219 139 1417 112 9 . . . 9 . 1052 89 197 2 . 5 175 734 246 59 . Legs 3968 | 1 10 . . . . . 451 332 543 592 263 103 . 93 . 1311 116 . 153 . . . . . Wheels 2218 | . 145 379 . . . 66 716 129 . . . 701 50 32 . . . . . . . . . . Hover 1186 | . . . . . . . . . . . . . . . . . 871 225 90 . . . . . Flight 140 | . . . . . . . . . . . . . . . . . . . 138 . . . . 2 Fastest Speed 40 | 120 80 80 180 180 180 130 120 120 120 120 121 110 110 110 160 120 48 45 40 50 152 158 50 50 Average Speed 127 | 120 82 132 180 180 180 161 146 144 120 120 121 119 110 160 160 125 73 47 77 89 154 158 118 50 Slowest Speed 700 | 120 120 180 180 180 180 200 220 700 150 121 152 240 110 240 160 180 250 114 200 152 158 158 163 105 Overloaded Moves . | . . . . . . . . . . . . . . . . . . . . . . . . . Propulsion Burnouts . | . . . . . . . . . . . . . . . . . . . . . . . . . Robots Hopped 4 | . . . . . . . . . . . . . . . . . . . 3 . . . . 1 Cave-ins Triggered . | . . . . . . . . . . . . . . . . . . . . . . . . . Exploration Rate (%) 37 | 2 37 51 37 60 41 94 40 13 51 19 5 82 2 93 3 85 22 7 55 13 67 9 32 13 Regions Visited 24 Branch Regions 3 Pre-discovered Areas 2 | . . 1 1 . . . . . . . . . . . . . . . . . . . . . Known Exits Taken 8 | . . . . . . . . 1 . . 1 . 1 . 1 . 1 1 . 1 . 1 . . Unknown Exits Taken 9 | 1 1 1 1 1 1 1 1 . . 1 . . . . . . . . . . . . . . Scrap Searched . | . . . . . . . . . . . . . . . . . . . . . . . . . Spaces Dug 203 | . . 7 . . 8 38 40 . 7 1 2 6 3 1 . . 8 . 5 . 24 . 37 16 Terrain Destroyed 1424 | . . 66 . . 8 265 274 76 23 94 2 41 3 112 . 2 105 . 123 16 56 5 129 24 Melee 55 | . . . . . . 21 11 . . 1 . . 3 1 . . 2 . . . . . . 16 Projectile 75 | . . . . . . 4 5 2 2 . 2 7 . 6 . 2 8 . . . 24 5 8 . AOE 1294 | . . 66 . . 8 240 258 74 21 93 . 34 . 105 . . 95 . 123 16 32 . 121 8 Terrain Rammed . | . . . . . . . . . . . . . . . . . . . . . . . . . Walls Destroyed . | . . . . . . . . . . . . . . . . . . . . . . . . . Machines Disabled . | . . . . . . . . . . . . . . . . . . . . . . . . . Actions | -11 -10 -9 -9 -9 -8 -8 -7 -6 -6 -6 -5 -5 -5 -5 -4 -4 -4 -3 -3 -2 -2 -2 -2 -1 --------- Run | Scr Mat Mat Min Exi Min Mat Fac Fac Gar Fac Fac Gar Fac Gar Fac Gar Fac Res Gar Res Gar Res Gar Acc Total 17036 | . 167 863 198 222 142 1825 1541 599 611 992 304 1170 61 1477 95 1708 1264 270 788 510 1231 344 168 486 Wait 1373 | . . 15 8 . . 78 71 27 2 322 13 142 . 172 . 23 66 18 111 19 233 45 8 . Move 13335 | . 154 663 179 218 138 1482 1282 472 542 591 262 812 49 1176 89 1507 1025 225 522 424 733 246 94 450 Hop 3 | . . . . . . . . . . . . . . . . . . . 2 . . . . 1 Pick Up 318 | . 3 30 . . . 24 30 16 15 9 10 27 2 15 1 26 29 5 24 21 18 7 5 1 Fast Attach 104 | . 1 7 . . . 10 5 15 . 5 1 2 1 9 . 8 7 2 4 8 8 4 . 7 Attach 196 | . . 6 . . . 13 19 9 5 3 6 18 . 9 2 13 21 3 30 14 10 2 11 2 Detach 15 | . . . . . . . 1 1 . 1 . . . 1 . . 4 1 1 1 . . 2 2 Swap 239 | . 3 24 2 2 2 49 32 6 10 15 1 18 2 13 3 16 20 2 4 1 6 3 5 . Drop 218 | . 4 20 . 2 . 27 10 14 7 11 4 12 1 17 . 23 14 6 13 3 18 10 1 1 Fire 855 | . 2 95 7 . 2 116 69 33 27 34 7 54 3 55 . 81 75 7 52 19 66 26 23 2 Melee 88 | . . . . . . 23 20 6 . 1 . . 3 3 . 8 2 . . . . . 6 16 Ram 9 | . . . . . . . . . . . . . . . . . . 1 4 . . . . 4 Kick 3 | . . . . . . . . . . . . . . . . 1 . . 2 . . . . . Crush 25 | . . 3 2 . . 3 2 . . . . 5 . 2 . 1 . . . . . 1 6 . Escape Stasis 114 | . . . . . . . . . 3 . . 80 . 5 . . . . 19 . . . 7 . Rewire 141 | . . . . . . . . . . . . . . . . 1 1 . . . 139 . . . Trap . | . . . . . . . . . . . . . . . . . . . . . . . . . Miscellaneous . | . . . . . . . . . . . . . . . . . . . . . . . . . Route ------- -11/Scrapyard -10/Materials -9/Materials (discovered 3 exits: *Mat / [*Min x2]) -9/Mines -9/Exiles (discovered 2 exits: [*Min x2]) -8/Mines -8/Materials (discovered 3 exits: *Fac x3) -7/Factory -6/Factory -6/Garrison (discovered 2 exits: *Fac x2) -6/Factory (discovered 2 exits: *Fac / [*Low]) -5/Factory (discovered 2 exits: *Fac / Gar) -5/Garrison (discovered 3 exits: *Fac x3) -5/Factory -5/Garrison (discovered 3 exits: *Fac x3) -4/Factory -4/Garrison (discovered 3 exits: *Fac x3) -4/Factory -3/Research -3/Garrison -2/Research -2/Garrison (discovered 2 exits: *Res x2) -2/Research -2/Garrison -1/Access History --------- Turn | Location | Event 1 | -11/Scrapyard | Discovered new exit (range 0) 1 | -11/Scrapyard | Entered Materials 141 | -10/Materials | Discovered new exit (range 4) 145 | -10/Materials | Entered another Materials area 145 | -9/Materials | Evolved 2 slots: Utility x2 252 | -9/Materials | Discovered new exit (range 16) 308 | -9/Materials | Build established: Mutant 385 | -9/Materials | Lost 5 parts (3u2w) 765 | -9/Materials | Discovered new exit (range 15) 870 | -9/Materials | Build established: Scavenger-Mutant 1142 | -9/Materials | Discovered new exit (range 9) 1182 | -9/Materials | Build established: Mutant 1397 | -9/Materials | Entered Mines 1730 | -9/Mines | Learned location of Storage (-9) 1748 | -9/Mines | Deemed a non-threat by the Exiles lab entrance 1748 | -9/Mines | Discovered new exit (range 5) 1755 | -9/Mines | Entered Exiles 1782 | -9/Exiles | Discovered new exit (range 15) 1833 | -9/Exiles | Met 8R-AWN 1862 | -9/Exiles | Met EX-HEX 1917 | -9/Exiles | Met EX-BIN 2022 | -9/Exiles | Met EX-DEC 2129 | -9/Exiles | Discovered new exit (range 14) 2151 | -9/Exiles | Entered Mines 2154 | -8/Mines | Core integrity fell below 50% 2381 | -8/Mines | Discovered new exit (range 14) 2408 | -8/Mines | Entered Materials 2408 | -8/Materials | Evolved 2 slots: Propulsion x2 2857 | -8/Materials | Discovered new exit (range 16) 2926 | -8/Materials | Build established: Scavenger-Mutant 3114 | -8/Materials | Discovered new exit (range 6) 3342 | -8/Materials | Build established: Mutant 4401 | -8/Materials | Discovered new exit (range 16) 5176 | -8/Materials | Core integrity fell below 50% 5208 | -8/Materials | First assault squad dispatched 5302 | -8/Materials | Destroyed 9 combat bots 5303 | -8/Materials | Lost 5 parts (3n2w) 5393 | -8/Materials | Entered Factory 5393 | -7/Factory | Evolved 2 slots: Propulsion x1, Utility x1 5609 | -7/Factory | Build established: Scavenger-Mutant 5631 | -7/Factory | Discovered new exit (range 8) 6177 | -7/Factory | Build established: Mutant 6718 | -7/Factory | Build established: Hauler-Mutant 6913 | -7/Factory | Found Prototype Launcher 6914 | -7/Factory | Identified Rocket Array 6919 | -7/Factory | Found Rocket Array 6921 | -7/Factory | Found Rocket Array 6993 | -7/Factory | First assault squad dispatched 7091 | -7/Factory | Build established: Scavenger-Mutant 7262 | -7/Factory | Garrison activated, responded to threat 7304 | -7/Factory | Lost 3 parts (1p1n1w) 7462 | -7/Factory | Core integrity fell below 50% 7503 | -7/Factory | Lost 9 parts (5n2u2w) 7715 | -7/Factory | Entered another Factory area 7715 | -6/Factory | Evolved 2 slots: Power x1, Propulsion x1 8086 | -6/Factory | Garrison activated, responded to threat 8602 | -6/Factory | Identified exit to Garrison 8602 | -6/Factory | Entered Garrison 8656 | -6/Garrison | Triggered checkpoint 8661 | -6/Garrison | Triggered checkpoint 8813 | -6/Garrison | Discovered new exit (range 14) 9012 | -6/Garrison | Discovered new exit (range 10) 9030 | -6/Garrison | Installed Relay Interface Framework 9056 | -6/Garrison | Triggered checkpoint 9300 | -6/Garrison | Triggered checkpoint 9388 | -6/Garrison | Entered Factory 9569 | -6/Factory | Discovered new exit (range 20) 9738 | -6/Factory | First assault squad dispatched 10267 | -6/Factory | Discovered new exit (range 52) 10405 | -6/Factory | Lost 4 parts (1p3n) 10576 | -6/Factory | Entered another Factory area 10576 | -5/Factory | Evolved 2 slots: Utility x2 10723 | -5/Factory | Identified exit to Garrison 10841 | -5/Factory | Discovered new exit (range 8) 10876 | -5/Factory | First assault squad dispatched 10894 | -5/Factory | Build established: Hauler-Mutant 10948 | -5/Factory | Entered Garrison 10948 | -5/Garrison | Accompanied by 1 ally 10956 | -5/Garrison | Expanded RIF knowledge: Coupler Efficiency 11003 | -5/Garrison | Spotted B-75 Beast 11016 | -5/Garrison | Triggered checkpoint 11119 | -5/Garrison | Lost 8 parts (1p5n1u1w) 11133 | -5/Garrison | Destroyed B-75 Beast 11180 | -5/Garrison | Lost 5 parts (1p3u1w) 11320 | -5/Garrison | Triggered checkpoint 11356 | -5/Garrison | Destroyed 7 combat bots 11456 | -5/Garrison | Triggered checkpoint 11477 | -5/Garrison | Discovered new exit (range 15) 11490 | -5/Garrison | Build established: Scavenger-Mutant 11565 | -5/Garrison | Discovered new exit (range 8) 11871 | -5/Garrison | Triggered checkpoint 11882 | -5/Garrison | Garrison Relay disabled 12045 | -5/Garrison | Discovered new exit (range 13) 12235 | -5/Garrison | Triggered checkpoint 12370 | -5/Garrison | Entered Factory 12431 | -5/Factory | Identified exit to Garrison 12447 | -5/Factory | Entered Garrison 12480 | -5/Garrison | Triggered checkpoint 12536 | -5/Garrison | Spotted B-75 Beast 12555 | -5/Garrison | Destroyed 11 combat bots 12559 | -5/Garrison | Destroyed B-75 Beast 12584 | -5/Garrison | Lost 4 parts (3n1w) 13202 | -5/Garrison | Triggered checkpoint 13264 | -5/Garrison | Discovered new exit (range 13) 13295 | -5/Garrison | Expanded RIF knowledge: Program Shield 13487 | -5/Garrison | Discovered new exit (range 13) 13530 | -5/Garrison | Phase Generator disabled 14036 | -5/Garrison | Triggered checkpoint 14108 | -5/Garrison | Lost 3 parts (1p1n1u) 14145 | -5/Garrison | Triggered checkpoint 14346 | -5/Garrison | Discovered new exit (range 13) 14510 | -5/Garrison | Triggered checkpoint 14751 | -5/Garrison | Entered Factory 14751 | -4/Factory | Evolved 2 slots: Utility x2 14901 | -4/Factory | Identified exit to Garrison 14901 | -4/Factory | Entered Garrison 15004 | -4/Garrison | Triggered checkpoint 15075 | -4/Garrison | Garrison Relay disabled 15100 | -4/Garrison | Triggered checkpoint 15154 | -4/Garrison | Lost 3 parts (2n1w) 15187 | -4/Garrison | Garrison Relay disabled 15278 | -4/Garrison | Spotted B-86 Titan 15356 | -4/Garrison | Triggered checkpoint 15357 | -4/Garrison | Triggered checkpoint 15357 | -4/Garrison | Triggered checkpoint 15412 | -4/Garrison | Allies destroyed B-86 Titan 15521 | -4/Garrison | Discovered new exit (range 15) 15667 | -4/Garrison | Discovered new exit (range 14) 15771 | -4/Garrison | Discovered new exit (range 10) 15790 | -4/Garrison | Expanded RIF knowledge: Command Fork 16012 | -4/Garrison | Triggered checkpoint 16190 | -4/Garrison | Triggered checkpoint 16215 | -4/Garrison | Garrison Relay disabled 16311 | -4/Garrison | Triggered checkpoint 16693 | -4/Garrison | Garrison Relay disabled 16968 | -4/Garrison | Garrison Relay disabled 17079 | -4/Garrison | Entered Factory 17079 | -4/Factory | Accompanied by 6 allies 17158 | -4/Factory | Build established: Botlord-Mutant 17166 | -4/Factory | Assembled infested ambush trap array 17324 | -4/Factory | System corruption reached 10% 17381 | -4/Factory | Lost 16 parts (1p6n5u4w) 17394 | -4/Factory | Core integrity fell below 50% 17592 | -4/Factory | Build established: Bothacker-Mutant 17672 | -4/Factory | Discovered new exit (range 121) 17742 | -4/Factory | Spotted B-86 Titan 17743 | -4/Factory | Assimilated Titan 7a with formatsys_high 17829 | -4/Factory | First assault squad dispatched 18013 | -4/Factory | Destroyed 8 combat bots 18160 | -4/Factory | Identified exit to Research 18163 | -4/Factory | Entered Research 18163 | -3/Research | Evolved 2 slots: Weapon x2 18322 | -3/Research | Identified exit to Garrison 18322 | -3/Research | Entered Garrison 18325 | -3/Garrison | Expanded RIF knowledge: Alert ID Control 18345 | -3/Garrison | Spotted B-86 Titan 18442 | -3/Garrison | Triggered checkpoint 18461 | -3/Garrison | Destroyed B-86 Titan 18497 | -3/Garrison | Lost 8 parts (1p1n3u3w) 18553 | -3/Garrison | Garrison Relay disabled 18558 | -3/Garrison | Triggered checkpoint 18621 | -3/Garrison | Triggered checkpoint 18621 | -3/Garrison | Triggered checkpoint 18651 | -3/Garrison | Destroyed 7 combat bots 18666 | -3/Garrison | Lost 8 parts (4n1u3w) 18831 | -3/Garrison | System corruption reached 10% 18883 | -3/Garrison | Lost 6 parts (1n1u4w) 18996 | -3/Garrison | Core integrity fell below 50% 19061 | -3/Garrison | Core integrity fell below 20% 19061 | -3/Garrison | Discovered new exit (range 15) 19062 | -3/Garrison | Triggered checkpoint 19068 | -3/Garrison | Entered Research 19068 | -2/Research | Evolved 2 slots: Propulsion x2 19076 | -2/Research | Lost 8 parts (1p5n1u1w) 19355 | -2/Research | Build established: Mutant 19576 | -2/Research | Identified exit to Garrison 19576 | -2/Research | Entered Garrison 19584 | -2/Garrison | Expanded RIF knowledge: Autoassimilate 19615 | -2/Garrison | Triggered checkpoint 19705 | -2/Garrison | Triggered checkpoint 19749 | -2/Garrison | Triggered checkpoint 19828 | -2/Garrison | Destroyed 8 combat bots 19924 | -2/Garrison | Build established: Scavenger-Gunner 20521 | -2/Garrison | Spotted B-90 Cyclops 20526 | -2/Garrison | Allies destroyed B-90 Cyclops 20533 | -2/Garrison | Triggered checkpoint 20536 | -2/Garrison | Triggered checkpoint 20650 | -2/Garrison | Discovered new exit (range 10) 20698 | -2/Garrison | Triggered checkpoint 20751 | -2/Garrison | Garrison Relay disabled 20987 | -2/Garrison | Discovered new exit (range 8) 21006 | -2/Garrison | Triggered checkpoint 21348 | -2/Garrison | Entered Research 21416 | -2/Research | Found Fusion Bomb Launcher 21457 | -2/Research | Found Prototype Slashing Weapon 21457 | -2/Research | Identified Nanosword 21471 | -2/Research | Found Prototype Processor 21471 | -2/Research | Identified Exp. Core Analyzer 21490 | -2/Research | Found Nanosword 21531 | -2/Research | Build established: Scavenger-Tank 21642 | -2/Research | First assault squad dispatched 21898 | -2/Research | Identified exit to Garrison 21898 | -2/Research | Entered Garrison 21946 | -2/Garrison | Spotted B-90 Cyclops 21994 | -2/Garrison | Destroyed B-90 Cyclops 22023 | -2/Garrison | Destroyed 7 combat bots 22029 | -2/Garrison | Triggered checkpoint 22061 | -2/Garrison | Lost 10 parts (1p1n4u4w) 22111 | -2/Garrison | Triggered checkpoint 22137 | -2/Garrison | Discovered new exit (range 10) 22142 | -2/Garrison | Entered Access 22142 | -1/Access | Evolved 2 slots: Utility x2 22164 | -1/Access | Lost 12 parts (2p5n2u3w) 22342 | -1/Access | Core integrity fell below 50% 22381 | -1/Access | Core integrity fell below 20% 22398 | -1/Access | Lost 4 parts (3n1u) 22421 | -1/Access | Build established: Mutant 22433 | -1/Access | Destroyed by G-73 Enforcer with Phase Gun Last Messages --------------- 22425_ Penetrated by Slug. 22427_ The unstable cave ceiling collapses. 22427_ H-88 Terminator crushed by falling debris. 22428_ Slug penetrates Wall. 22428_ Slug penetrates Earth. 22428_ Slug penetrates Wall. 22428_ Slug penetrates Earth. 22428_ Penetrated by Slug. 22429_ The unstable cave ceiling collapses. 22431_ Slug penetrates G-73 Enforcer. 22431_ U-05 Engineer lays Concrete. 22431_ Biometal Heavy Treads destroyed. 22431_ Penetrated by Slug. 22431_ Biometal Heavy Treads destroyed. 22431_ Penetrated by Slug. 22432_ Slug penetrates Wall. 22432_ Nanosword destroyed. 22432_ Slug penetrates Wall. 22432_ U-05 Engineer lays Concrete. 22432_ Penetrated by Slug. Map ----- +----------------------------------------------------+ | #????????????????????????????????????????????? | | #????????????????????????????????????????????? | | ?????????????????????????????????????????????? | | #/######?????????????????????????????????????????? | | #?????????????????????????????????????????? | | #?????????????????????????????????????????? | | #?????????????????????????????????????????? | | = #?????????????????????????????????????????? | | #?????????????????????????????????????????? | | #?????????????????????????????????????????? | | ! #?????????????????????????????????????????? | | !! #?????????????????????????????????????????? | | !! #?????????????????????????????????????????? | | #?????????????????????????????????????????? | | ! #?????????????????????????????????????????? | | #???????????????????###???????????????????? | | #/###########??????????????# #???????????????????? | | #??#############; #??????????????????? | | #??# g# ##?????????????????? | | #??# g g## ##????????????????? | | #??# g h######???????????????? | | #??# ggg### ##???????????????? | | #??# hg ; ###?????????????? | | #??# h # #?????????????? | | #+### #??# ########?????????????? | | ????# #??# @ ## #?????????????????? | | ????# #??# Y ####?????????????????? | | ????# #??# * #????????????????????? | | ????# #??# % #????????????????????? | | ????# #??# % #????????????????????? | | ????# ###### # [ ###???????????????????? | | ????# u = #???????????????? | | ????# #???????????????? | | ????# #???????????????? | | ????# #???????????????? | | ????# #???????????????? | | ????# #???????????????? | | ????# #???????????????? | | ????####+#########################???????????????? | | ?????????????????????????????????????????????????? | | ?????????????????????????????????????????????????? | | ?????????????????????????????????????????????????? | | ?????????????????????????????????????????????????? | | ?????????????????????????????????????????????????? | | ?????????????????????????????????????????????????? | | ?????????????????????????????????????????????????? | | ?????????????????????????????????????????????????? | | ?????????????????????????????????????????????????? | | ?????????????????????????????????????????????????? | | ?????????????????????????????????????????????????? | +----------------------------------------------------+ Best States ------------- Heat Dissipation 144 Coolant Potential 100 Energy Generation 53 Energy Capacity 570 Matter Stores 300 Matter Capacity 300 Sight Range 20 Terrain Scan Range 24 Terrain Scan Density 10 Power Amplification 20 Armor Coverage 1650 Resistance: TH 25 Resistance: EM 20 Power Shielding 66 Phase Shifting 15 Evasion (%) 62 Targeting Accuracy 8 Melee Accuracy 8 Target Analysis 8 Core Analysis 10 Armor Integrity Analysis 66 Recoil Reduction 8 Offensive Hacking 10 Relay Coupler Types 169 Relay Coupler Value 5 Item Schematics ----------------- None Robot Schematics ------------------ None Fabricated ------------ Nothing Alien Tech Used ----------------- None Achievements -------------- None Challenges ------------ None Game ------ Seed HeatStoragePick Manual? 0 Play Time 05:43:53 Cumulative 173.9 hours Start 2020.09.16 @ 18:29:42 End 2020.09.17 @ 19:49:25 Sessions 15 Manual Loads 0 Difficulty Rogue Special Mode None Game No. 106 Rogue 106 Adventurer 0 Explorer 0 Win Type - Total 6 Types 4/0/1/1/0/0/0/0/0 Lore% 70 Gallery% 66 Achievement% 51 Wizard Run 0 Options --------- ASCII 1 Keyboard 0 Movement Mouse Keybinds 0 Fullscreen 2 Font 12/Smallcaps Map View 76x56 Tactical HUD 1 Map Filters NONE Filters NONE Steam 0 RUN: a7a9c9ce-f69b-4dae-b367-a4de7737dea2